[Event "*** SCC Grand Prix: Titled Tuesday Blitz"]
[Site "Chess.com"]
[Date "2020.07.21"]
[Round "7"]
[White "tigra"]
[Black "Gusarov91"]
[Result "1-0"]
[WhiteElo "2848"]
[BlackElo "2641"]
[TimeControl "180+1"]
[EndTime "11:18:54 PDT"]
[Termination "tigra won by checkmate"]

1. e4 {[%clk 0:03:00.9]} 1... c6 {[%clk 0:02:59.7]} 2. d3 {[%clk 0:02:59.7]}
2... d5 {[%clk 0:02:59.5]} 3. Nd2 {[%clk 0:03:00.6]} 3... g6 {[%clk 0:02:58.6]}
4. Ngf3 {[%clk 0:03:01.1]} 4... Bg7 {[%clk 0:02:59]} 5. h3 {[%clk 0:02:59.4]}
5... Nd7 {[%clk 0:02:57.2]} 6. exd5 {[%clk 0:02:57.6]} 6... cxd5 {[%clk
0:02:57.3]} 7. d4 {[%clk 0:02:58.3]} 7... Ngf6 {[%clk 0:02:56.6]} 8. Bd3 {[%clk
0:02:57.5]} 8... O-O {[%clk 0:02:56.5]} 9. O-O {[%clk 0:02:57.4]} 9... b6 {[%clk
0:02:55.1]} 10. Re1 {[%clk 0:02:55.6]} 10... Bb7 {[%clk 0:02:55.4]} 11. c3
{[%clk 0:02:55.3]} 11... a5 {[%clk 0:02:51.3]} 12. Qe2 {[%clk 0:02:54.5]} 12...
e6 {[%clk 0:02:51.3]} 13. Nb1 {[%clk 0:02:44.4]} 13... Qc8 {[%clk 0:02:51.1]}
14. Na3 {[%clk 0:02:43]} 14... Ba6 {[%clk 0:02:51.4]} 15. Nb5 {[%clk 0:02:43.3]}
15... Bxb5 {[%clk 0:02:50.2]} 16. Bxb5 {[%clk 0:02:42.9]} 16... Ne4 {[%clk
0:02:50.3]} 17. Bd3 {[%clk 0:02:41.5]} 17... f5 {[%clk 0:02:42.5]} 18. a4 {[%clk
0:02:38.9]} 18... Re8 {[%clk 0:02:34.5]} 19. Bb5 {[%clk 0:02:35.5]} 19... Nd6
{[%clk 0:02:31.7]} 20. Bxd7 {[%clk 0:02:32.7]} 20... Qxd7 {[%clk 0:02:31.7]} 21.
Bf4 {[%clk 0:02:33.5]} 21... Ne4 {[%clk 0:02:25.2]} 22. Ne5 {[%clk 0:02:33]}
22... Qb7 {[%clk 0:02:23.9]} 23. f3 {[%clk 0:02:32]} 23... Nf6 {[%clk
0:02:23.5]} 24. Nd3 {[%clk 0:02:21.3]} 24... Nd7 {[%clk 0:02:20.3]} 25. Ra3
{[%clk 0:02:03.7]} 25... Qc6 {[%clk 0:02:19.3]} 26. Kh1 {[%clk 0:02:02.2]} 26...
Rac8 {[%clk 0:02:16.9]} 27. Rea1 {[%clk 0:01:57.7]} 27... h6 {[%clk 0:02:12]}
28. h4 {[%clk 0:01:56.1]} 28... Kh7 {[%clk 0:02:11.7]} 29. Qe3 {[%clk
0:01:53.3]} 29... Qc4 {[%clk 0:01:57.2]} 30. Kg1 {[%clk 0:01:50.4]} 30... Bf8
{[%clk 0:01:57]} 31. R3a2 {[%clk 0:01:48.5]} 31... Bg7 {[%clk 0:01:57.5]} 32.
Kf2 {[%clk 0:01:45.7]} 32... Kg8 {[%clk 0:01:26.7]} 33. Ne5 {[%clk 0:01:40.5]}
33... Nxe5 {[%clk 0:01:26.4]} 34. Bxe5 {[%clk 0:01:41.4]} 34... Bxe5 {[%clk
0:01:21.3]} 35. Qxe5 {[%clk 0:01:42.3]} 35... Qc7 {[%clk 0:01:21.4]} 36. Qxc7
{[%clk 0:01:39.2]} 36... Rxc7 {[%clk 0:01:21.6]} 37. Ra3 {[%clk 0:01:40.1]}
37... Kf7 {[%clk 0:01:20.5]} 38. Rb3 {[%clk 0:01:40.3]} 38... Rc6 {[%clk
0:01:21.1]} 39. Rb5 {[%clk 0:01:38.9]} 39... Rec8 {[%clk 0:01:21]} 40. g4 {[%clk
0:01:37]} 40... fxg4 {[%clk 0:01:20]} 41. fxg4 {[%clk 0:01:37.9]} 41... Ke7
{[%clk 0:01:20.5]} 42. Ke3 {[%clk 0:01:35.1]} 42... Rf8 {[%clk 0:01:20.6]} 43.
Rg1 {[%clk 0:01:32.6]} 43... Kd7 {[%clk 0:01:20.3]} 44. Rh1 {[%clk 0:01:32.7]}
44... Kc7 {[%clk 0:01:20.2]} 45. Rh2 {[%clk 0:01:31.3]} 45... Rc4 {[%clk
0:01:20.3]} 46. Re2 {[%clk 0:01:20.2]} 46... Rxa4 {[%clk 0:01:19.6]} 47. Kd2
{[%clk 0:01:20.2]} 47... Kc6 {[%clk 0:01:09.5]} 48. Rb3 {[%clk 0:01:18.9]} 48...
Re8 {[%clk 0:01:06.9]} 49. Re1 {[%clk 0:01:17.5]} 49... b5 {[%clk 0:01:03.7]}
50. Kd3 {[%clk 0:01:15.8]} 50... Ra2 {[%clk 0:01:02.5]} 51. Kc2 {[%clk
0:01:15.6]} 51... Ra4 {[%clk 0:01:00.5]} 52. Rf1 {[%clk 0:01:11.9]} 52... h5
{[%clk 0:00:59.2]} 53. g5 {[%clk 0:01:11.9]} 53... e5 {[%clk 0:00:53.1]} 54.
Rf6+ {[%clk 0:01:11.1]} 54... Kc7 {[%clk 0:00:53.4]} 55. Rxb5 {[%clk 0:01:06.6]}
55... exd4 {[%clk 0:00:53.7]} 56. Kb3 {[%clk 0:01:04.7]} 56... Ra1 {[%clk
0:00:41.3]} 57. Rc5+ {[%clk 0:01:04.6]} 57... Kb7 {[%clk 0:00:40.4]} 58. Rxd5
{[%clk 0:00:47.8]} 58... a4+ {[%clk 0:00:31.1]} 59. Kc4 {[%clk 0:00:18.8]} 59...
Rc8+ {[%clk 0:00:29.6]} 60. Kb5 {[%clk 0:00:09.2]} 60... dxc3 {[%clk 0:00:27.2]}
61. Rb6+ {[%clk 0:00:06.5]} 61... Ka7 {[%clk 0:00:27.5]} 62. Rd7+ {[%clk
0:00:06.4]} 62... Ka8 {[%clk 0:00:23.7]} 63. Ka6 {[%clk 0:00:06.7]} 63... Rc6
{[%clk 0:00:03.8]} 64. Ra7# {[%clk 0:00:05.6]} 1-0

[Event "*** SCC Grand Prix: Titled Tuesday Blitz"]
[Site "Chess.com"]
[Date "2020.07.21"]
[Round "7"]
[White "elohunter1999"]
[Black "JuliaEfremova"]
[Result "0-1"]
[WhiteElo "2465"]
[BlackElo "2352"]
[TimeControl "180+1"]
[EndTime "11:18:55 PDT"]
[Termination "JuliaEfremova won by checkmate"]

1. e4 {[%clk 0:03:00.9]} 1... d5 {[%clk 0:02:58.2]} 2. exd5 {[%clk 0:03:00.7]}
2... Qxd5 {[%clk 0:02:57.4]} 3. Nc3 {[%clk 0:03:00.8]} 3... Qa5 {[%clk 0:02:56]}
4. d4 {[%clk 0:03:01.4]} 4... Nf6 {[%clk 0:02:55.4]} 5. Nf3 {[%clk 0:02:59.8]}
5... Bg4 {[%clk 0:02:54.8]} 6. h3 {[%clk 0:02:55.2]} 6... Bxf3 {[%clk
0:02:54.7]} 7. Qxf3 {[%clk 0:02:55]} 7... c6 {[%clk 0:02:55.1]} 8. Bd2 {[%clk
0:02:46]} 8... e6 {[%clk 0:02:44.9]} 9. Bd3 {[%clk 0:02:43.6]} 9... Nbd7 {[%clk
0:02:38.8]} 10. O-O {[%clk 0:02:19.7]} 10... Qc7 {[%clk 0:02:32.1]} 11. Rfe1
{[%clk 0:02:16]} 11... Be7 {[%clk 0:02:29.5]} 12. Ne4 {[%clk 0:02:04.9]} 12...
O-O {[%clk 0:02:28.1]} 13. a4 {[%clk 0:02:02.4]} 13... Nxe4 {[%clk 0:02:27.6]}
14. Bxe4 {[%clk 0:01:59.1]} 14... Nf6 {[%clk 0:02:24.2]} 15. Bd3 {[%clk
0:01:59.1]} 15... Rad8 {[%clk 0:02:12.3]} 16. Qe3 {[%clk 0:01:33.1]} 16... c5
{[%clk 0:02:11]} 17. dxc5 {[%clk 0:01:22.9]} 17... Bxc5 {[%clk 0:02:10.2]} 18.
Qf3 {[%clk 0:01:22.5]} 18... Qb6 {[%clk 0:01:58.2]} 19. b3 {[%clk 0:01:19.1]}
19... Bd4 {[%clk 0:01:42.6]} 20. Rad1 {[%clk 0:01:18.8]} 20... Qc7 {[%clk
0:01:30.5]} 21. Bf4 {[%clk 0:01:12.5]} 21... Qb6 {[%clk 0:01:23.5]} 22. Bg5
{[%clk 0:01:10.3]} 22... h6 {[%clk 0:01:05.9]} 23. Bd2 {[%clk 0:01:02.2]} 23...
Rc8 {[%clk 0:01:00.2]} 24. Qg3 {[%clk 0:01:00.4]} 24... Kh8 {[%clk 0:00:55.8]}
25. Qh4 {[%clk 0:00:58.5]} 25... Rfd8 {[%clk 0:00:47.3]} 26. a5 {[%clk
0:00:52.2]} 26... Qc5 {[%clk 0:00:44.5]} 27. Qg3 {[%clk 0:00:29.2]} 27... Bc3
{[%clk 0:00:37]} 28. Bxc3 {[%clk 0:00:29.3]} 28... Qxc3 {[%clk 0:00:37.8]} 29.
Qe5 {[%clk 0:00:21.4]} 29... Qxe5 {[%clk 0:00:34.1]} 30. Rxe5 {[%clk 0:00:22.3]}
30... Kg8 {[%clk 0:00:33.6]} 31. Rde1 {[%clk 0:00:19.8]} 31... Kf8 {[%clk
0:00:33.6]} 32. Rb5 {[%clk 0:00:19.5]} 32... Rc7 {[%clk 0:00:32.8]} 33. g3
{[%clk 0:00:19.2]} 33... Rd6 {[%clk 0:00:32.9]} 34. Kg2 {[%clk 0:00:19.1]} 34...
Nd5 {[%clk 0:00:32]} 35. Kf3 {[%clk 0:00:11.4]} 35... a6 {[%clk 0:00:31.4]} 36.
Rxd5 {[%clk 0:00:08.3]} 36... Rxd5 {[%clk 0:00:31.4]} 37. Be4 {[%clk 0:00:07.6]}
37... Rd2 {[%clk 0:00:30.6]} 38. c4 {[%clk 0:00:06.9]} 38... Rb2 {[%clk
0:00:30]} 39. Re3 {[%clk 0:00:06.8]} 39... Ra2 {[%clk 0:00:30.1]} 40. b4 {[%clk
0:00:05.7]} 40... Rb2 {[%clk 0:00:28.8]} 41. b5 {[%clk 0:00:04.5]} 41... axb5
{[%clk 0:00:28.9]} 42. cxb5 {[%clk 0:00:05]} 42... Rxb5 {[%clk 0:00:29.2]} 43.
Ra3 {[%clk 0:00:05.7]} 43... Rbc5 {[%clk 0:00:26.4]} 44. Kg2 {[%clk 0:00:05]}
44... Ke7 {[%clk 0:00:25.3]} 45. g4 {[%clk 0:00:04.2]} 45... f5 {[%clk 0:00:23]}
46. Bf3 {[%clk 0:00:04.2]} 46... Kf6 {[%clk 0:00:22.6]} 47. a6 {[%clk
0:00:03.7]} 47... bxa6 {[%clk 0:00:22]} 48. Rxa6 {[%clk 0:00:04.6]} 48... f4
{[%clk 0:00:20]} 49. Be4 {[%clk 0:00:03.8]} 49... g5 {[%clk 0:00:19.9]} 50. Bf5
{[%clk 0:00:03.5]} 50... R5c6 {[%clk 0:00:18.7]} 51. Rxc6 {[%clk 0:00:03.9]}
51... Rxc6 {[%clk 0:00:18.6]} 52. Be4 {[%clk 0:00:04.8]} 52... Rc3 {[%clk
0:00:17.6]} 53. Bb7 {[%clk 0:00:04.4]} 53... Ke5 {[%clk 0:00:17.9]} 54. Ba8
{[%clk 0:00:04.1]} 54... Kd4 {[%clk 0:00:18.2]} 55. Bb7 {[%clk 0:00:04.3]} 55...
e5 {[%clk 0:00:18.6]} 56. f3 {[%clk 0:00:03.3]} 56... Ke3 {[%clk 0:00:18.1]} 57.
h4 {[%clk 0:00:03.6]} 57... Rc2+ {[%clk 0:00:18]} 58. Kh3 {[%clk 0:00:04.1]}
58... Kf2 {[%clk 0:00:15.6]} 59. hxg5 {[%clk 0:00:04.6]} 59... hxg5 {[%clk
0:00:16.2]} 60. Ba6 {[%clk 0:00:04.6]} 60... Ra2 {[%clk 0:00:14.6]} 61. Bf1
{[%clk 0:00:03.8]} 61... Ra1 {[%clk 0:00:13.3]} 62. Bg2 {[%clk 0:00:03.8]} 62...
Rg1 {[%clk 0:00:11.6]} 63. Bf1 {[%clk 0:00:02.5]} 63... Kxf1 {[%clk 0:00:11]}
64. Kh2 {[%clk 0:00:02.7]} 64... Rg3 {[%clk 0:00:10.2]} 65. Kh1 {[%clk
0:00:02.7]} 65... Rh3# {[%clk 0:00:10.5]} 0-1

[Event "*** SCC Grand Prix: Titled Tuesday Blitz"]
[Site "Chess.com"]
[Date "2020.07.21"]
[Round "7"]
[White "RodinMihail"]
[Black "InitiatingASC"]
[Result "0-1"]
[WhiteElo "2474"]
[BlackElo "2369"]
[TimeControl "180+1"]
[EndTime "11:18:59 PDT"]
[Termination "InitiatingASC won by checkmate"]

1. e4 {[%clk 0:02:58]} 1... c5 {[%clk 0:02:59.9]} 2. Nf3 {[%clk 0:02:57.8]} 2...
Nc6 {[%clk 0:02:59.8]} 3. d4 {[%clk 0:02:58.4]} 3... cxd4 {[%clk 0:03:00.7]} 4.
Nxd4 {[%clk 0:02:59.1]} 4... Nf6 {[%clk 0:03:00.9]} 5. Nc3 {[%clk 0:02:59.2]}
5... e5 {[%clk 0:03:01.1]} 6. Ndb5 {[%clk 0:02:58.4]} 6... h6 {[%clk 0:03:01.4]}
7. Nd5 {[%clk 0:02:44]} 7... Nxd5 {[%clk 0:03:01.4]} 8. Qxd5 {[%clk 0:02:43.6]}
8... d6 {[%clk 0:02:50]} 9. Be3 {[%clk 0:02:23.8]} 9... Be6 {[%clk 0:02:48]} 10.
Qd2 {[%clk 0:02:22.9]} 10... a6 {[%clk 0:02:41.4]} 11. Nc3 {[%clk 0:02:21.6]}
11... Be7 {[%clk 0:02:28.4]} 12. Nd5 {[%clk 0:02:17.4]} 12... Bxd5 {[%clk
0:02:28.5]} 13. Qxd5 {[%clk 0:02:18.3]} 13... Qa5+ {[%clk 0:02:14.6]} 14. Qxa5
{[%clk 0:02:16.5]} 14... Nxa5 {[%clk 0:02:15.5]} 15. O-O-O {[%clk 0:02:13.7]}
15... Rc8 {[%clk 0:02:07.8]} 16. b3 {[%clk 0:02:06.5]} 16... Nc6 {[%clk
0:02:06.1]} 17. c3 {[%clk 0:02:03.2]} 17... Nd4 {[%clk 0:01:53.4]} 18. Kb2
{[%clk 0:02:00.7]} 18... Ne6 {[%clk 0:01:50.5]} 19. h4 {[%clk 0:01:58.5]} 19...
O-O {[%clk 0:01:45.8]} 20. g3 {[%clk 0:01:53.4]} 20... Rfd8 {[%clk 0:01:44.7]}
21. Be2 {[%clk 0:01:51]} 21... Nc5 {[%clk 0:01:34.5]} 22. f3 {[%clk 0:01:46.2]}
22... Bf8 {[%clk 0:01:19.6]} 23. Rd5 {[%clk 0:01:45.5]} 23... Ne6 {[%clk
0:01:12.4]} 24. Rhd1 {[%clk 0:01:44.1]} 24... Rc6 {[%clk 0:01:11.2]} 25. f4
{[%clk 0:01:24.9]} 25... Rdc8 {[%clk 0:01:03.8]} 26. c4 {[%clk 0:01:24.8]} 26...
Nc5 {[%clk 0:00:50.6]} 27. Bf3 {[%clk 0:01:17.3]} 27... f6 {[%clk 0:00:46.2]}
28. a4 {[%clk 0:01:10.8]} 28... Kf7 {[%clk 0:00:36]} 29. a5 {[%clk 0:01:10.6]}
29... b6 {[%clk 0:00:31.6]} 30. b4 {[%clk 0:00:47.2]} 30... Nd7 {[%clk
0:00:17.6]} 31. Bg4 {[%clk 0:00:41.1]} 31... Ke8 {[%clk 0:00:14.7]} 32. Bxb6
{[%clk 0:00:34.2]} 32... Rxc4 {[%clk 0:00:11.7]} 33. fxe5 {[%clk 0:00:27.4]}
33... fxe5 {[%clk 0:00:08.7]} 34. Bc5 {[%clk 0:00:18.8]} 34... Nxc5 {[%clk
0:00:04.8]} 35. Bxc8 {[%clk 0:00:18.1]} 35... Nxe4 {[%clk 0:00:05]} 36. Bxa6
{[%clk 0:00:17.1]} 36... Rxb4+ {[%clk 0:00:04.5]} 37. Ka3 {[%clk 0:00:17.5]}
37... Rb8 {[%clk 0:00:03.6]} 38. Bb5+ {[%clk 0:00:14]} 38... Kf7 {[%clk
0:00:01.8]} 39. Rc1 {[%clk 0:00:09.6]} 39... Ke6 {[%clk 0:00:01.7]} 40. Rdd1
{[%clk 0:00:07.5]} 40... d5+ {[%clk 0:00:02.2]} 41. Ka4 {[%clk 0:00:06.2]} 41...
d4 {[%clk 0:00:01.7]} 42. a6 {[%clk 0:00:06.1]} 42... Nc3+ {[%clk 0:00:01.7]}
43. Rxc3 {[%clk 0:00:05.9]} 43... dxc3 {[%clk 0:00:02.6]} 44. a7 {[%clk
0:00:03.7]} 44... Ra8 {[%clk 0:00:02.9]} 45. Bc4+ {[%clk 0:00:03.8]} 45... Kf6
{[%clk 0:00:02.9]} 46. Rf1+ {[%clk 0:00:02.9]} 46... Kg6 {[%clk 0:00:02.9]} 47.
Kb3 {[%clk 0:00:03.8]} 47... Rxa7 {[%clk 0:00:02.3]} 48. Bd3+ {[%clk 0:00:04.7]}
48... Kh5 {[%clk 0:00:02.1]} 49. Kc2 {[%clk 0:00:05.6]} 49... Bd6 {[%clk
0:00:01.7]} 50. Be2+ {[%clk 0:00:06.2]} 50... Kg6 {[%clk 0:00:01.7]} 51. Kxc3
{[%clk 0:00:07.1]} 51... h5 {[%clk 0:00:01.8]} 52. Bd3+ {[%clk 0:00:07.1]} 52...
Kh6 {[%clk 0:00:02.7]} 53. Bf5 {[%clk 0:00:07.7]} 53... Rc7+ {[%clk 0:00:03.3]}
54. Kb3 {[%clk 0:00:06.9]} 54... g6 {[%clk 0:00:04.2]} 55. Be4 {[%clk
0:00:06.6]} 55... Rd7 {[%clk 0:00:04.4]} 56. Bd5 {[%clk 0:00:07.5]} 56... Bc5
{[%clk 0:00:04.5]} 57. Kc4 {[%clk 0:00:08.4]} 57... Rd6 {[%clk 0:00:04.7]} 58.
Be4 {[%clk 0:00:09.3]} 58... Rd4+ {[%clk 0:00:04.4]} 59. Kxc5 {[%clk 0:00:10.2]}
59... Rxe4 {[%clk 0:00:05.3]} 60. Kd6 {[%clk 0:00:10.4]} 60... Re3 {[%clk
0:00:05.7]} 61. Ke6 {[%clk 0:00:11.3]} 61... Rxg3 {[%clk 0:00:06]} 62. Kxe5
{[%clk 0:00:11.6]} 62... Rg4 {[%clk 0:00:06.9]} 63. Rh1 {[%clk 0:00:11.7]} 63...
Ra4 {[%clk 0:00:07.4]} 64. Kf6 {[%clk 0:00:11.6]} 64... Ra5 {[%clk 0:00:08.3]}
65. Kf7 {[%clk 0:00:12]} 65... Ra6 {[%clk 0:00:09.2]} 66. Rg1 {[%clk 0:00:10.9]}
66... Ra4 {[%clk 0:00:09.9]} 67. Kf6 {[%clk 0:00:11.6]} 67... Ra6+ {[%clk
0:00:08.6]} 68. Kf7 {[%clk 0:00:11.8]} 68... Rb6 {[%clk 0:00:08.8]} 69. Rxg6+
{[%clk 0:00:12.6]} 69... Rxg6 {[%clk 0:00:08.8]} 70. Ke7 {[%clk 0:00:12.9]}
70... Rg4 {[%clk 0:00:09.7]} 71. Kf6 {[%clk 0:00:13.5]} 71... Rxh4 {[%clk
0:00:10.6]} 72. Kf5 {[%clk 0:00:13.8]} 72... Rg4 {[%clk 0:00:11.5]} 73. Ke5
{[%clk 0:00:12.5]} 73... Rg8 {[%clk 0:00:12.4]} 74. Kf5 {[%clk 0:00:13.4]} 74...
h4 {[%clk 0:00:12.7]} 75. Kf6 {[%clk 0:00:14.3]} 75... h3 {[%clk 0:00:13]} 76.
Kf7 {[%clk 0:00:15.2]} 76... Rg7+ {[%clk 0:00:13.5]} 77. Kf8 {[%clk 0:00:14.9]}
77... h2 {[%clk 0:00:14.4]} 78. Ke8 {[%clk 0:00:15.2]} 78... h1=Q {[%clk
0:00:15.3]} 79. Kd8 {[%clk 0:00:16.1]} 79... Qa8# {[%clk 0:00:15.4]} 0-1

[Event "*** SCC Grand Prix: Titled Tuesday Blitz"]
[Site "Chess.com"]
[Date "2020.07.21"]
[Round "7"]
[White "OhanyanEminChess"]
[Black "GustavoJuarezF"]
[Result "1-0"]
[WhiteElo "2432"]
[BlackElo "2029"]
[TimeControl "180+1"]
[EndTime "11:19:00 PDT"]
[Termination "OhanyanEminChess won on time"]

1. e4 {[%clk 0:03:00.9]} 1... c5 {[%clk 0:02:59.8]} 2. Nf3 {[%clk 0:03:00.6]}
2... Nc6 {[%clk 0:02:59.8]} 3. Nc3 {[%clk 0:03:00.4]} 3... Nf6 {[%clk
0:02:58.6]} 4. d4 {[%clk 0:02:59.2]} 4... cxd4 {[%clk 0:02:57.7]} 5. Nxd4 {[%clk
0:03:00.1]} 5... e5 {[%clk 0:02:57.8]} 6. Ndb5 {[%clk 0:02:59.3]} 6... d6 {[%clk
0:02:57.9]} 7. Bg5 {[%clk 0:02:58.3]} 7... a6 {[%clk 0:02:57.5]} 8. Na3 {[%clk
0:02:58]} 8... b5 {[%clk 0:02:57.6]} 9. Bxf6 {[%clk 0:02:58]} 9... gxf6 {[%clk
0:02:57.2]} 10. Nd5 {[%clk 0:02:58]} 10... f5 {[%clk 0:02:51.2]} 11. c3 {[%clk
0:02:56.5]} 11... Bg7 {[%clk 0:02:45.4]} 12. exf5 {[%clk 0:02:54.5]} 12... Bxf5
{[%clk 0:02:42.9]} 13. Nc2 {[%clk 0:02:46.2]} 13... O-O {[%clk 0:02:38.3]} 14.
Nce3 {[%clk 0:02:45.4]} 14... Be6 {[%clk 0:02:37.7]} 15. Bd3 {[%clk 0:02:45.1]}
15... f5 {[%clk 0:02:36.2]} 16. O-O {[%clk 0:02:45]} 16... e4 {[%clk 0:02:35.7]}
17. Nf4 {[%clk 0:02:44.5]} 17... Bd7 {[%clk 0:02:28.1]} 18. Bc2 {[%clk
0:02:42.5]} 18... Qe7 {[%clk 0:02:12]} 19. Nfd5 {[%clk 0:02:25.5]} 19... Qe5
{[%clk 0:02:05.2]} 20. Nb6 {[%clk 0:02:20.3]} 20... Rad8 {[%clk 0:02:01.9]} 21.
Nxd7 {[%clk 0:02:18.4]} 21... Rxd7 {[%clk 0:02:01]} 22. Qh5 {[%clk 0:02:09.7]}
22... Kh8 {[%clk 0:01:49.1]} 23. Rad1 {[%clk 0:02:05.8]} 23... d5 {[%clk
0:01:43.5]} 24. Bb3 {[%clk 0:01:56.1]} 24... d4 {[%clk 0:01:42.2]} 25. cxd4
{[%clk 0:01:57]} 25... Nxd4 {[%clk 0:01:41.6]} 26. Rfe1 {[%clk 0:01:36.8]} 26...
Rd6 {[%clk 0:01:40.6]} 27. Nf1 {[%clk 0:00:50]} 27... Rh6 {[%clk 0:01:33.3]} 28.
Qg5 {[%clk 0:00:49.6]} 28... Nf3+ {[%clk 0:01:21.7]} 29. gxf3 {[%clk 0:00:48.6]}
29... Rg6 {[%clk 0:01:20.3]} 30. Qxg6 {[%clk 0:00:48.3]} 30... hxg6 {[%clk
0:01:19.8]} 31. fxe4 {[%clk 0:00:47.8]} 31... fxe4 {[%clk 0:01:11.8]} 32. Ng3
{[%clk 0:00:45.2]} 32... Qf4 {[%clk 0:01:07.4]} 33. Rf1 {[%clk 0:00:26.4]} 33...
e3 {[%clk 0:01:05.3]} 34. fxe3 {[%clk 0:00:27.3]} 34... Qxe3+ {[%clk 0:01:04.7]}
35. Kg2 {[%clk 0:00:27.2]} 35... Rxf1 {[%clk 0:00:47.6]} 36. Rxf1 {[%clk
0:00:28.1]} 36... Bxb2 {[%clk 0:00:46]} 37. Rf3 {[%clk 0:00:25.6]} 37... Qd2+
{[%clk 0:00:42.3]} 38. Rf2 {[%clk 0:00:23.8]} 38... Qd4 {[%clk 0:00:41.1]} 39.
Bc2 {[%clk 0:00:14.2]} 39... Qd5+ {[%clk 0:00:30.2]} 40. Be4 {[%clk 0:00:14]}
40... Qxa2 {[%clk 0:00:28.7]} 41. Bxg6 {[%clk 0:00:13.9]} 41... b4 {[%clk
0:00:28.2]} 42. Bf7 {[%clk 0:00:09.2]} 42... b3 {[%clk 0:00:22.5]} 43. Bd5
{[%clk 0:00:09.3]} 43... a5 {[%clk 0:00:20.5]} 44. Nh5 {[%clk 0:00:07.9]} 44...
Kh7 {[%clk 0:00:17.7]} 45. Be4+ {[%clk 0:00:05]} 45... Kh6 {[%clk 0:00:17]} 46.
Ng3 {[%clk 0:00:05.9]} 46... a4 {[%clk 0:00:14.9]} 47. Nf5+ {[%clk 0:00:06.2]}
47... Kg5 {[%clk 0:00:14]} 48. h4+ {[%clk 0:00:06.2]} 48... Kf6 {[%clk
0:00:12.9]} 49. Ne3+ {[%clk 0:00:04.6]} 49... Ke5 {[%clk 0:00:11.7]} 50. Bg6
{[%clk 0:00:04.9]} 50... Bd4 {[%clk 0:00:10.7]} 51. Nc4+ {[%clk 0:00:04.1]}
51... Kd5 {[%clk 0:00:08.1]} 52. Bf7+ {[%clk 0:00:03.4]} 52... Kc5 {[%clk
0:00:07.6]} 53. Rxa2 {[%clk 0:00:01.5]} 53... bxa2 {[%clk 0:00:07.1]} 54. Nd2
{[%clk 0:00:01]} 54... a1=Q {[%clk 0:00:06.2]} 55. Ne4+ {[%clk 0:00:01.9]} 55...
Kb6 {[%clk 0:00:04.8]} 56. h5 {[%clk 0:00:02.8]} 56... Qb2+ {[%clk 0:00:04]} 57.
Kf3 {[%clk 0:00:03.3]} 57... Qc2 {[%clk 0:00:01.7]} 58. Bg6 {[%clk 0:00:02.1]}
58... Qd3+ {[%clk 0:00:01.4]} 59. Kg4 {[%clk 0:00:03]} 1-0